bitfinex/quotes_ETHUSD_20251010
["timestamp","ask_amount","ask_price","bid_price","bid_amount"]
[1760098218842,5.42845875,4352.2,4352.1,1.955]
[1760098221685,8.17392984,4352.2,4352.1,1.955]
[1760098221977,34.81245875,4352.2,4352.1,0.01]
[1760098222180,35.44605875,4352.2,4352.1,0.01]
[1760098222392,35.44525875,4352.2,4352.1,0.01]
[1760098222981,30.93461775,4352.2,4352.1,0.01]
[1760098223601,4.85134132,4352.1,4351.6,0.001]
[1760098223803,2.5536,4351.4,4351.1,0.011]
[1760098223953,39.70663878,4351.2,4351.1,0.011]
[1760098224259,39.70663878,4351.2,4350.7,0.001]
[1760098224260,2.93202787,4350.8,4350.7,0.001]
[1760098224460,2.2986392,4350.4,4350.3,0.001]
[1760098224665,39.73003946,4350.4,4350.3,0.001]
[1760098224861,36.6041214,4350.4,4350.3,0.001]
[1760098225065,37.29543811,4350.4,4350.3,0.001]
[1760098225451,33.64061591,4350.4,4350.3,0.001]
[1760098225651,31.18534891,4350.4,4350.3,0.001]
[1760098225959,30.4764072,4350.4,4350.3,0.001]
[1760098226157,31.29904629,4350.4,4350.3,0.001]
[1760098226384,30.4764072,4350.4,4350.3,0.001]
[1760098226684,31.29904629,4350.4,4350.3,0.001]
[1760098226983,32.57740929,4350.4,4350.3,0.001]
[1760098227175,10.9180532,4350.4,4350.3,0.001]
[1760098227371,18.4657832,4350.4,4350.3,0.001]
[1760098227572,16.21334561,4350.4,4350.3,0.001]
[1760098227774,15.5974032,4350.4,4350.3,0.001]
[1760098227956,23.7493072,4350.4,4350.3,0.001]
[1760098228284,24.36520352,4350.4,4350.3,0.001]
[1760098228690,21.56012332,4350.4,4350.3,0.001]
[1760098228897,4.46999632,4350.4,4350.3,0.001]
[1760098229088,8.98375352,4350.4,4350.3,0.001]
[1760098229805,10.30666852,4350.4,4350.3,0.001]
[1760098230320,6.1527392,4350.4,4350.3,0.001]
[1760098230499,9.3808482,4350.4,4350.3,0.001]
[1760098230901,8.8258322,4350.4,4350.3,0.001]
[1760098231286,6.1527392,4350.4,4350.3,0.001]
[1760098231999,6.0522392,4350.4,4350.3,0.001]
[1760098232186,6.1527392,4350.4,4350.3,0.001]
[1760098232386,12.3630662,4350.4,4350.3,0.001]
[1760098232591,8.3033742,4350.4,4350.3,0.001]
[1760098233421,5.5191392,4350.4,4350.3,0.001]
[1760098233718,9.8415532,4350.4,4350.3,0.001]
[1760098234094,9.4445532,4350.4,4350.3,0.001]
[1760098234287,10.4682225,4350.4,4350.3,0.001]
[1760098234504,3.7121693,4350.4,4350.3,0.001]
[1760098234703,3.6116693,4350.4,4350.3,0.001]
[1760098234993,1.2,4350.4,4350.3,0.001]
[1760098235793,1.2,4350.4,4350.3,3.468]
[1760098236192,1.2,4350.4,4350.3,4.10403214]
[1760098236390,1.2,4350.4,4350.3,4.21843214]
[1760098236595,1.2,4350.4,4350.3,4.24141906]
[1760098237126,1.2,4350.4,4350.3,3.5824]
[1760098239342,1.2,4350.4,4350.3,5.4974]
[1760098240249,1.3005,4350.4,4350.3,5.383]
[1760098240402,3.5991392,4350.4,4350.3,5.382]
[1760098240607,21.45732159,4350.4,4350.3,0.001]
[1760098240807,12.99399959,4350.4,4350.3,0.001]
[1760098241247,13.62759959,4350.4,4350.3,0.001]
[1760098241743,18.33349859,4350.4,4350.3,0.001]
[1760098242707,6.64508059,4350.4,4350.3,0.001]
[1760098243038,18.45349859,4350.4,4350.3,0.001]
[1760098243412,14.73647659,4350.4,4350.3,0.001]
[1760098243828,14.98096959,4350.4,4350.3,0.001]
[1760098244227,12.97747759,4350.4,4350.3,0.001]
[1760098244446,12.97667759,4350.4,4350.3,0.001]
[1760098244860,11.89082559,4350.4,4350.3,0.001]
[1760098245161,11.64633259,4350.4,4350.3,0.001]
[1760098245356,12.46897168,4350.4,4350.3,0.001]
[1760098245943,12.87270968,4350.4,4350.3,0.001]
[1760098246339,10.69618468,4350.4,4350.3,0.001]
[1760098246546,7.46691968,4350.4,4350.3,0.001]
[1760098246857,6.64428059,4350.4,4350.3,0.001]
[1760098247053,9.10415259,4350.4,4350.3,0.001]
[1760098247456,9.72169536,4350.4,4350.3,0.001]
[1760098247653,4.22908416,4350.4,4350.3,0.001]
[1760098247962,9.10757236,4350.4,4350.3,0.001]
[1760098248377,9.33357236,4350.4,4350.3,0.001]
[1760098248544,6.64212336,4350.4,4350.3,0.001]
[1760098248992,9.34157236,4350.4,4350.3,0.001]
[1760098249161,9.44207236,4350.4,4350.3,0.001]
[1760098249332,6.74262336,4350.4,4350.3,0.001]
[1760098249733,4.44398416,4350.4,4350.3,0.001]
[1760098249930,4.34348416,4350.4,4350.3,0.001]
[1760098250334,2.42348416,4350.4,4350.3,0.001]
[1760098250669,1.69154139,4350.4,4350.3,0.001]
[1760098252439,2.31038838,4350.4,4350.3,0.001]
[1760098258349,1.69154139,4350.4,4350.3,0.001]
[1760098259054,1.79204139,4350.4,4350.3,0.001]
[1760098259252,4.09068059,4350.4,4350.3,0.001]
[1760098259483,1.79204139,4350.4,4350.3,0.001]
[1760098260484,6.01068059,4350.4,4350.3,0.001]
[1760098260668,33.27446959,4350.4,4350.3,0.001]
[1760098261001,32.62131959,4350.4,4350.3,0.001]
[1760098261378,33.85676671,4350.4,4350.3,0.001]
[1760098261705,37.07951671,4350.4,4350.3,0.001]
[1760098262385,35.84406959,4350.4,4350.3,0.001]
[1760098262601,36.64428059,4350.4,4350.3,0.001]
[1760098262799,27.45888659,4350.4,4350.3,0.001]
[1760098263106,27.13054859,4350.4,4350.3,0.001]
[1760098263656,32.30730159,4350.4,4350.3,0.001]
[1760098263877,27.41588659,4350.4,4350.3,0.001]
[1760098264277,27.09188659,4350.4,4350.3,0.001]
[1760098264691,34.02582359,4350.4,4350.3,0.001]
[1760098265609,38.88603521,4350.4,4350.3,0.001]
[1760098265766,41.50449221,4350.4,4350.3,0.001]
[1760098266408,41.50369221,4350.4,4350.3,0.001]
[1760098266564,41.45369221,4350.4,4350.3,0.001]
[1760098267307,42.69393527,4350.4,4350.3,0.001]
[1760098269539,41.45369221,4350.4,4350.3,0.001]
[1760098269693,41.07372621,4350.4,4350.3,0.001]
[1760098269900,30.30404321,4350.4,4350.3,0.001]
[1760098270937,39.61373321,4350.4,4350.3,0.001]
[1760098271109,39.14573821,4350.4,4350.3,0.001]
[1760098271733,38.94152521,4350.4,4350.3,0.001]
[1760098271935,39.03039321,4350.4,4350.3,0.001]
[1760098272415,39.85716137,4350.4,4350.3,0.001]
[1760098272893,30.50997937,4350.4,4350.3,0.001]
[1760098273912,30.50997937,4350.4,4350.1,0.011]
[1760098273913,4.96669204,4350.3,4350.1,0.011]
[1760098274233,35.36766433,4350.2,4350.1,0.011]
[1760098274537,35.44518627,4350.2,4350.1,0.011]
[1760098278247,35.44518627,4350.2,4349.8,0.001]
[1760098278248,32.93250342,4349.9,4349.8,0.001]
[1760098278550,41.19441468,4349.9,4349.8,0.001]
[1760098278846,41.40907778,4349.9,4349.8,0.001]
[1760098279541,27.55569053,4349.9,4349.8,0.001]
[1760098279913,10.46935643,4349.9,4349.8,0.001]
[1760098280121,15.31979343,4349.9,4349.8,0.001]
[1760098281136,38.53574943,4349.9,4349.8,0.001]
[1760098281539,37.80550183,4349.9,4349.8,0.001]
[1760098281741,32.98995083,4349.9,4349.8,0.001]
[1760098282249,36.58387483,4349.9,4349.8,0.001]
[1760098282401,28.99765983,4349.9,4349.8,0.001]
[1760098282748,11.73928483,4349.9,4349.8,0.001]
[1760098282913,9.73910883,4349.9,4349.8,0.001]
[1760098283120,11.76255483,4349.9,4349.8,0.001]
[1760098283411,9.73910883,4349.9,4349.8,0.001]
[1760098284148,11.79088183,4349.9,4349.8,0.001]
[1760098285139,12.30886883,4349.9,4349.8,0.001]
[1760098285326,11.83672383,4349.9,4349.8,0.001]
[1760098286234,15.69891083,4349.9,4349.8,0.001]
[1760098286541,15.33283483,4349.9,4349.8,0.001]
[1760098287129,9.73910883,4349.9,4349.8,0.001]
[1760098287319,18.81987383,4349.9,4349.8,0.001]
[1760098287519,20.01987383,4349.9,4349.8,0.001]
[1760098288117,10.93910883,4349.9,4349.8,0.001]
[1760098288374,22.54452508,4349.9,4349.8,0.001]
[1760098288650,20.72049108,4349.9,4349.8,0.001]
[1760098289246,21.16231708,4349.9,4349.8,0.001]
[1760098289472,16.94673008,4349.9,4349.8,0.001]
[1760098290374,18.97929208,4349.9,4349.8,0.001]
[1760098290569,22.28299785,4349.9,4349.8,0.001]
[1760098291455,38.89156283,4349.9,4349.8,0.001]
[1760098292319,40.93830883,4349.9,4349.8,0.001]
[1760098292521,34.02269085,4349.9,4349.8,0.001]
[1760098293379,36.31159885,4349.9,4349.8,0.001]
[1760098294444,45.06827285,4349.9,4349.8,0.001]
[1760098295947,42.17967735,4349.9,4349.8,0.001]
[1760098296163,49.27967735,4349.9,4349.8,0.001]
[1760098297555,48.03830883,4349.9,4349.8,0.001]
[1760098297952,52.16827285,4349.9,4349.8,0.001]
[1760098298461,32.93271484,4349.5,4349.4,0.001]
[1760098298669,40.71658781,4349.5,4349.4,0.001]
[1760098298864,30.30491281,4349.5,4349.4,0.001]
[1760098299482,38.00590781,4349.5,4349.4,0.001]
[1760098300575,10.81778781,4349.5,4349.4,0.001]
[1760098300770,37.45501981,4349.5,4349.4,0.001]
[1760098301114,37.45501981,4349.5,4348.1,0.01]
[1760098301115,2.5536,4348.9,4348.1,0.01]
[1760098301400,17.04267524,4347.2,4346.1,3.562]
[1760098301565,44.00382494,4347.2,4346.1,3.562]
[1760098301764,44.10562494,4347.2,4346.1,3.562]
[1760098302322,44.72516974,4347.2,4346.1,0.01]
[1760098302612,14.10562494,4347.2,4346.1,0.01]
[1760098302775,44.10562494,4347.2,4346.1,0.01]
[1760098304301,10.27748483,4347.2,4346.1,0.01]
[1760098304504,13.48799665,4347.2,4346.1,0.01]
[1760098304805,36.26022065,4347.2,4346.1,0.01]
[1760098305168,40.39018467,4347.2,4346.1,0.01]
[1760098305704,32.13025663,4347.2,4346.1,0.01]
[1760098305875,35.44807263,4347.2,4346.1,0.01]
[1760098307794,5.44807263,4347.2,4346.1,0.01]
[1760098307994,35.44807263,4347.2,4346.1,0.01]
[1760098310608,35.44727263,4347.2,4346.1,0.01]
[1760098311004,35.02691663,4347.2,4346.1,0.01]
[1760098311208,33.73034563,4347.2,4346.1,0.01]
[1760098312010,10.50950663,4347.2,4346.1,0.01]
[1760098312211,10.50950663,4347.2,4346.2,0.1144]
[1760098312212,4.32133124,4347.2,4346.2,0.1144]
[1760098312412,4.3443093,4347.2,4346.2,0.1144]
[1760098312575,7.3737153,4347.2,4346.2,0.1144]
[1760098312782,4.95493124,4347.2,4346.2,0.1144]
[1760098313217,6.99989524,4347.2,4347.1,0.011]
[1760098313418,4.85313124,4347.2,4347.1,0.011]
[1760098313617,4.95493124,4347.2,4347.1,0.011]
[1760098313797,15.88651024,4347.2,4347.1,0.011]
[1760098315019,16.10935124,4347.2,4347.1,0.011]
[1760098315218,16.60237588,4347.2,4347.1,0.011]
[1760098315422,12.84046888,4347.2,4347.1,0.011]
[1760098315621,8.31408088,4347.2,4347.1,0.011]
[1760098315784,8.40760688,4347.2,4347.1,0.011]
[1760098316097,8.40760602,4347.2,4347.1,0.011]
[1760098316894,11.84940302,4347.2,4347.1,0.011]
[1760098317339,5.44795502,4347.2,4347.1,0.011]
[1760098318232,9.99662902,4347.2,4347.1,0.011]
[1760098318433,2.41222378,4347.2,4347.1,0.011]
[1760098318736,0.1144,4347.2,4347.1,0.011]
[1760098319094,0.6181822,4348.0,4347.1,0.24953]
[1760098319095,2.30026706,4347.4,4347.1,0.24953]
[1760098319632,2.30017926,4347.5,4347.1,0.011]
[1760098319999,1.92,4347.5,4347.1,0.011]
[1760098320197,0.099,4347.5,4347.1,0.011]
[1760098320501,0.12197806,4347.4,4347.1,0.011]
[1760098320798,2.0344,4347.6,4347.1,0.011]
[1760098321009,0.02297806,4347.6,4347.1,0.5837]
[1760098321224,1.92,4347.6,4347.1,0.5837]
[1760098321531,2.29995801,4348.0,4347.2,0.48130331]
[1760098321848,0.1144,4348.1,4347.3,0.1144]
[1760098322023,2.29985562,4348.1,4347.6,0.1144]
[1760098322337,0.02297806,4348.0,4347.7,5.382]
[1760098322532,0.69160039,4348.1,4347.7,5.8403]
[1760098322832,2.41419246,4348.3,4347.7,5.8403]
[1760098323036,2.41419246,4348.3,4347.7,6.66577828]
[1760098323037,0.1144,4348.3,4347.7,6.66577828]
[1760098323234,2.32279162,4348.2,4347.7,6.66577828]
[1760098323599,2.32279162,4348.2,4347.7,6.20747828]
[1760098324156,2.81681521,4348.2,4347.7,6.20747828]
[1760098324371,0.51700165,4348.2,4347.7,6.20747828]
[1760098324543,2.0344,4348.3,4347.8,0.86220393]
[1760098324745,2.29966836,4348.5,4347.9,0.4583]
[1760098324934,0.60842359,4348.7,4348.0,0.1144]
[1760098325132,4.21962938,4348.6,4348.0,0.1144]
[1760098325373,4.21966323,4348.5,4348.0,0.1144]
[1760098325556,2.29966323,4348.5,4348.0,0.1144]
[1760098326376,2.29960108,4348.6,4348.0,0.1144]
[1760098326681,1.92,4348.6,4348.1,0.02299855]
[1760098326972,1.92,4348.6,4348.0,0.98256136]
[1760098326973,4.21967339,4348.5,4348.0,0.98256136]
[1760098327266,1.94297806,4348.6,4348.0,0.1144]
[1760098327267,0.0997,4348.4,4348.0,0.1144]
[1760098327566,0.02297806,4348.5,4348.0,0.1144]
[1760098327773,2.32262998,4348.5,4348.0,0.1144]
[1760098328361,0.02297806,4348.5,4348.0,0.1144]
[1760098328583,4.33395365,4348.7,4348.1,0.4583]
[1760098328584,0.1144,4348.7,4348.1,0.4583]
[1760098328887,0.69147287,4348.9,4348.1,0.4583]
[1760098328888,0.69147287,4348.9,4348.2,0.02299802]
[1760098329046,0.69147287,4348.9,4348.4,0.1144]
[1760098329381,0.1144,4349.1,4348.5,8.13993927]
[1760098329577,0.1144,4349.1,4348.6,0.0229959]
[1760098329729,0.1144,4349.1,4348.7,0.4583]
[1760098330134,0.49426188,4349.4,4348.9,2.29941842]
[1760098330332,0.7932822,4349.9,4349.2,2.4136624]
[1760098330333,0.51723994,4349.8,4349.2,2.4136624]
[1760098330565,0.02297806,4349.8,4349.3,5.382]
[1760098330964,0.2611,4349.7,4349.3,5.382]
[1760098331164,1.92,4349.6,4349.3,5.382]
[1760098331345,0.02297806,4349.6,4349.4,3.466]
[1760098331746,0.02297806,4349.7,4349.4,3.466]
[1760098332875,2.32119171,4349.7,4349.4,3.466]
[1760098333184,0.02217806,4349.7,4349.4,3.466]
[1760098333555,1.94217806,4349.7,4349.4,3.466]
[1760098333942,4.24119914,4349.7,4349.4,3.466]
[1760098334138,4.34019914,4349.7,4349.4,3.466]
[1760098334463,4.24119914,4349.7,4349.4,3.466]
[1760098334659,1.94217806,4349.7,4349.4,3.466]
[1760098334862,2.3981074,4349.6,4349.4,3.466]
[1760098336179,2.2991074,4349.6,4349.4,3.466]
[1760098336340,5.4281441,4349.5,4349.4,3.466]
[1760098336540,4.2281441,4349.5,4349.4,3.466]
[1760098336843,4.1291441,4349.5,4349.4,3.466]
[1760098337280,1.92,4349.7,4349.4,3.466]
[1760098337583,1.94217806,4349.7,4349.4,3.466]
[1760098338089,4.24119663,4349.7,4349.4,3.466]
[1760098338288,2.04117806,4349.7,4349.4,3.466]
[1760098339371,4.34022885,4349.7,4349.4,3.466]
[1760098339676,4.34019512,4349.7,4349.4,3.466]
[1760098339862,1.94217806,4349.7,4349.4,3.466]
[1760098340777,4.24118919,4349.7,4349.4,3.466]
[1760098340957,2.29908338,4349.6,4349.4,3.466]
[1760098341274,0.02217806,4349.5,4349.4,3.466]
[1760098341487,0.02217806,4349.6,4349.4,3.466]
[1760098341983,0.02217806,4349.7,4349.4,3.466]
[1760098343177,2.32114729,4349.8,4349.4,3.466]
[1760098343573,0.02217806,4349.8,4349.4,3.466]
[1760098343777,0.1264,4349.9,4349.5,2.75741484]
[1760098343979,0.012,4349.9,4349.6,0.59569061]
[1760098344189,0.012,4349.9,4349.7,3.464]
[1760098345258,2.39925627,4349.8,4349.6,0.1144]
[1760098345456,0.12307806,4349.7,4349.4,1.915]
[1760098345656,0.12307806,4349.7,4349.5,1.313]
[1760098346594,4.87188827,4349.9,4349.5,1.313]
[1760098346880,2.32113676,4349.8,4349.5,1.313]
[1760098347847,0.02217806,4349.8,4349.5,1.313]
[1760098348172,2.56015517,4349.7,4349.5,1.313]
[1760098348382,0.02217806,4349.6,4349.5,1.313]
[1760098348681,2.32124004,4349.6,4349.5,1.313]
[1760098348884,0.02217806,4349.6,4349.5,1.313]
[1760098349587,10.262545,4349.5,4349.3,0.001]
[1760098349791,10.93940751,4349.4,4349.3,0.001]
[1760098349959,2.79368645,4349.4,4349.3,0.001]
[1760098350150,2.91486451,4349.4,4349.3,0.001]
[1760098350507,0.61569681,4349.4,4349.3,0.001]
[1760098350781,2.91486451,4349.4,4349.3,0.001]
[1760098351102,0.49451875,4349.4,4349.3,0.001]
[1760098351293,2.79364983,4349.5,4349.3,0.001]
[1760098351589,0.49451875,4349.5,4349.3,0.001]
[1760098351752,1.2,4349.6,4349.3,0.001]
[1760098352148,1.69451875,4349.6,4349.3,0.001]
[1760098352370,3.60000319,4349.6,4349.3,0.001]
[1760098352571,2.79363691,4349.5,4349.3,0.001]
[1760098353093,2.91676451,4349.4,4349.3,0.001]
[1760098353295,20.07265151,4349.4,4349.3,0.001]
[1760098353461,15.14307565,4349.4,4349.3,0.001]
[1760098353668,6.95689165,4349.4,4349.3,0.001]
[1760098353866,5.60887445,4349.4,4349.3,0.001]
[1760098354082,6.22705665,4349.4,4349.3,0.001]
[1760098354300,6.22647365,4349.4,4349.3,0.001]
[1760098354772,0.59541875,4349.4,4349.3,0.001]
[1760098354973,2.89458645,4349.4,4349.3,0.001]
[1760098355169,3.41186865,4349.4,4349.3,0.001]
[1760098355374,3.41186865,4349.4,4348.9,0.001]
[1760098355375,34.85297916,4349.0,4348.9,0.001]
[1760098355687,40.20738618,4349.0,4348.9,0.001]
[1760098355894,39.94287918,4349.0,4348.9,0.001]
[1760098356073,32.72897418,4349.0,4348.9,0.001]
[1760098356275,33.04208418,4349.0,4348.9,0.001]
[1760098356509,2.93319067,4348.6,4348.5,0.001]
[1760098356684,4.85988827,4347.6,4347.3,1.915]
[1760098357004,2.91841928,4347.5,4347.3,4.936]
[1760098357303,2.30022542,4347.4,4347.3,4.936]
[1760098357486,2.40172542,4347.4,4347.3,4.936]
[1760098357802,2.89624417,4347.4,4347.3,4.936]
[1760098358216,2.40172542,4347.4,4347.3,4.936]
[1760098360103,0.60891875,4347.5,4347.3,4.936]
[1760098360299,3.37002192,4347.5,4347.3,4.936]
[1760098360621,1.06980878,4347.5,4347.3,4.936]
[1760098360786,3.4714856,4347.5,4347.3,4.936]
[1760098360987,0.49451875,4347.4,4347.3,4.936]
[1760098361188,2.90909557,4347.5,4347.3,4.936]
[1760098361492,2.30022542,4347.4,4347.3,4.936]
[1760098361686,2.30022542,4347.4,4347.1,0.011]
[1760098361883,0.02217806,4347.3,4347.2,3.463]
[1760098362220,2.30027833,4347.3,4347.2,3.463]
[1760098362717,0.1015,4347.3,4347.2,3.463]
[1760098362918,2.32240988,4347.4,4347.2,3.463]
[1760098362919,0.02217806,4347.4,4347.2,3.463]
[1760098363119,2.40177833,4347.3,4347.2,3.463]
[1760098363713,17.783266,4347.3,4347.1,0.011]
[1760098363937,18.94262957,4347.2,4347.1,0.011]
[1760098364106,18.92045151,4347.2,4347.1,0.011]
[1760098364291,14.77139351,4347.2,4347.1,0.011]
[1760098364491,13.22883151,4347.2,4347.1,0.011]
[1760098364692,14.20697551,4347.2,4347.1,0.011]
[1760098364892,14.00121051,4347.2,4347.1,0.011]
[1760098365845,14.19997551,4347.2,4347.1,0.011]
[1760098366206,16.11997551,4347.2,4347.1,0.011]
[1760098366442,16.12897137,4347.2,4347.1,0.011]
[1760098366644,16.82075516,4347.2,4347.1,0.011]
[1760098366945,13.63503116,4347.2,4347.1,0.011]
[1760098367321,13.10179816,4347.2,4347.1,0.011]
[1760098367525,12.61346016,4347.2,4347.1,0.011]
[1760098367914,13.91300316,4347.2,4347.1,0.011]
[1760098368416,12.66761116,4347.2,4347.1,0.011]
[1760098368817,13.84016716,4347.2,4347.1,0.011]
[1760098369018,13.05107816,4347.2,4347.1,0.011]
[1760098369221,12.72042516,4347.2,4347.1,0.011]
[1760098369726,10.36732116,4347.2,4347.1,0.011]
[1760098369928,5.50743289,4347.2,4347.1,0.011]
[1760098370128,16.0669763,4347.2,4347.1,0.011]
[1760098370956,16.4205963,4347.2,4347.1,0.011]
[1760098371924,18.1397903,4347.2,4347.1,0.011]
[1760098372320,14.1058963,4347.2,4347.1,0.011]
[1760098372968,14.4674093,4347.2,4347.1,0.011]
[1760098373497,14.2250303,4347.2,4347.1,0.011]
[1760098373697,13.8214653,4347.2,4347.1,0.011]
[1760098373854,13.4245443,4347.2,4347.1,0.011]
[1760098374058,0.1144,4347.3,4347.1,0.011]
[1760098374793,2.30033124,4347.2,4347.1,0.011]
[1760098375356,14.1222823,4347.2,4347.1,0.011]
[1760098375557,2.30033124,4347.2,4347.1,0.011]
[1760098375789,2.40183124,4347.2,4347.1,0.011]
[1760098375984,0.1144,4347.3,4347.1,0.011]
[1760098376357,2.99188058,4347.6,4347.1,0.1254]
[1760098376558,0.02217806,4347.5,4347.1,0.1254]
[1760098376783,2.32158942,4347.5,4347.1,0.1254]
[1760098376979,2.32156806,4347.5,4347.1,0.1254]
[1760098377577,0.02137806,4347.5,4347.1,0.1254]
[1760098377778,2.30024132,4347.4,4347.2,1.916]
[1760098377977,2.32161938,4347.4,4347.2,1.916]
[1760098378478,2.30027833,4347.3,4347.2,1.916]
[1760098380056,2.40307833,4347.3,4347.2,1.916]
[1760098380285,2.42445639,4347.3,4347.2,1.916]
[1760098380590,16.90134039,4347.3,4347.2,1.916]
[1760098380800,16.87996233,4347.3,4347.2,1.916]
[1760098381090,17.13215886,4347.3,4347.2,1.916]
[1760098381296,19.16655886,4347.3,4347.2,1.916]
[1760098381494,23.17133586,4347.3,4347.2,1.916]
[1760098381660,4.22033124,4347.2,4347.1,0.011]
[1760098381857,4.22033124,4347.2,4346.6,0.1154]
[1760098381858,1.92,4346.9,4346.6,0.001]
[1760098382071,25.24657985,4346.7,4346.6,0.001]
[1760098382278,25.74115538,4346.7,4346.6,0.001]
[1760098382476,22.31535338,4346.7,4346.6,0.001]
[1760098382902,18.49634638,4346.7,4346.6,0.001]
[1760098383083,20.41634638,4346.7,4346.6,0.001]
[1760098383395,19.25691822,4346.7,4346.6,0.001]
[1760098383597,19.14519022,4346.7,4346.6,0.001]
[1760098383976,18.90301522,4346.7,4346.6,0.001]
[1760098384173,18.28294422,4346.7,4346.6,0.001]
[1760098384579,19.83391522,4346.7,4346.6,0.001]
[1760098384783,11.66016922,4346.7,4346.6,0.001]
[1760098385099,10.74496156,4346.7,4346.6,0.001]
[1760098385268,9.91820022,4346.7,4346.6,0.001]
[1760098385464,5.50980622,4346.7,4346.6,0.001]
[1760098385664,14.68223022,4346.7,4346.6,0.001]
[1760098387566,14.82840922,4346.7,4346.6,0.001]
[1760098388190,15.21217056,4346.7,4346.6,0.001]
[1760098388392,14.38540922,4346.7,4346.6,0.001]
[1760098388709,14.51218422,4346.7,4346.6,0.001]
[1760098389700,14.82840922,4346.7,4346.6,0.001]
[1760098390009,15.65517056,4346.7,4346.6,0.001]
[1760098390216,16.70209554,4346.7,4346.6,0.001]
[1760098390394,15.46200922,4346.7,4346.6,0.001]
[1760098390595,18.36970385,4346.3,4346.2,0.001]
[1760098390914,18.86427938,4346.3,4346.2,0.001]
[1760098391088,17.70185538,4346.3,4346.2,0.001]
[1760098391582,18.39375405,4346.3,4346.2,0.001]
[1760098391792,24.68446805,4346.3,4346.2,0.001]
[1760098392918,10.36997005,4346.3,4346.2,0.001]
[1760098393097,10.36997005,4346.3,4346.1,0.011]
[1760098393098,34.96886052,4346.2,4346.1,0.011]
[1760098393317,35.46343605,4346.2,4346.1,0.011]
[1760098393488,35.56623605,4346.2,4346.1,0.011]
[1760098393689,7.85242511,4345.4,4345.3,3.465]
[1760098393884,15.22968891,4345.4,4345.3,3.465]
[1760098394321,13.57789891,4345.4,4345.3,3.465]
[1760098394521,14.26993963,4345.4,4345.3,3.465]
[1760098395328,14.88958353,4345.4,4345.3,3.465]
[1760098395711,14.26993963,4345.4,4345.3,3.465]
[1760098399012,14.26913963,4345.4,4345.3,3.465]
[1760098399545,4.85499003,4345.2,4344.1,1.927]
[1760098399730,5.34956556,4345.2,4344.4,3.465]
[1760098399917,5.45236556,4345.2,4344.4,3.465]
[1760098400116,35.45236556,4345.2,4344.4,3.465]
[1760098400335,36.27735615,4345.2,4344.4,3.465]
[1760098400534,36.9695262,4345.2,4344.4,3.465]
[1760098401552,36.14453561,4345.2,4344.4,3.465]
[1760098402729,35.71353561,4345.2,4344.4,3.465]
[1760098402930,27.69145361,4345.2,4344.4,3.465]
[1760098403135,8.56318261,4345.2,4344.4,3.465]
[1760098403535,13.52661175,4345.2,4344.4,3.465]
[1760098403740,41.10796475,4345.2,4344.4,3.465]
[1760098404649,14.97996255,4345.2,4344.4,3.465]
[1760098404949,14.81393355,4345.2,4344.4,3.465]
[1760098405256,3.82763769,4345.2,4344.4,3.465]
[1760098405468,3.82763769,4345.2,4344.5,0.4930176]
[1760098405469,11.94531639,4345.2,4344.5,0.4930176]
[1760098405613,12.04811639,4345.2,4344.4,3.465]
[1760098406362,12.04811639,4345.2,4345.1,0.011]
[1760098407117,7.72392636,4345.2,4345.1,0.011]
[1760098407313,4.63372636,4345.2,4345.1,0.011]
[1760098407740,0.49457553,4345.2,4345.1,0.011]
[1760098407952,0.49657553,4345.4,4345.1,6.64885498]
[1760098408152,0.002,4345.4,4345.2,0.4475]
[1760098409563,0.002,4345.4,4345.3,0.1144]
[1760098409957,4.14115083,4345.4,4345.3,0.1144]
[1760098410123,4.63572636,4345.4,4345.3,0.1144]
[1760098411225,4.63636704,4345.4,4345.3,0.1144]
[1760098411855,5.83636704,4345.4,4345.3,0.1144]
[1760098412234,1.69742914,4345.4,4345.3,0.1144]
[1760098412436,1.202,4345.4,4345.3,3.45481218]
[1760098421137,1.2012,4345.4,4345.3,3.45481218]
[1760098426074,1.2012,4345.4,4345.3,3.00731218]
[1760098426765,1.2012,4345.4,4345.3,3.45481218]
[1760098428472,1.2012,4345.4,4345.3,6.91981218]
[1760098428782,1.2012,4345.4,4345.3,3.5794]
[1760098429984,3.62666217,4345.4,4345.3,3.5794]
[1760098430183,17.01180217,4345.4,4345.3,3.465]
[1760098430382,18.95055426,4345.4,4345.3,3.465]
[1760098430687,15.91555826,4345.4,4345.3,3.465]
[1760098431288,27.91377326,4345.4,4345.3,3.465]
[1760098431479,29.73474026,4345.4,4345.3,3.465]
[1760098432185,23.54256126,4345.4,4345.3,3.465]
[1760098432488,24.4286301,4345.4,4345.3,3.465]
[1760098432789,23.8654411,4345.4,4345.3,3.465]
[1760098433602,2.30139003,4345.2,4345.1,3.476]
[1760098433912,7.06029007,4345.2,4345.1,3.476]
[1760098434107,7.03891201,4345.2,4345.1,3.476]
[1760098435804,30.65195201,4345.2,4345.1,3.476]
[1760098436003,17.59503801,4345.2,4345.1,3.476]
[1760098436181,14.04164701,4345.2,4345.1,3.476]
[1760098436582,13.72044701,4345.2,4345.1,3.476]
[1760098436883,16.97192201,4345.2,4345.1,3.476]
[1760098437880,18.20971301,4345.2,4345.1,3.476]
[1760098438810,17.96733401,4345.2,4345.1,3.476]
[1760098439022,10.94968901,4345.2,4345.1,3.476]
[1760098439224,10.08223801,4345.2,4345.1,3.476]
[1760098439581,9.25984601,4345.2,4345.1,3.476]
[1760098440016,9.75750301,4345.2,4345.1,3.476]